{"text_format":"1","workbook":"xlsx","n_sheets":3,"sheets":["Journal saisie ","GrandLivre","LCompe"],"not_rendered":{"charts":0,"images":0,"macros":1,"external_links":0,"defined_names":2,"comments":0,"pivot_tables":0},"unopened":[],"bounds":{"document_bytes":16777216,"sheet_cells":100000,"rows_first":2000,"rows_last":500,"rows_between":2000,"halvings":0,"cell_chars":16384,"cell_head_chars":4096},"cells_cut":0,"cells_raw":0,"read":"whole","date_system":"1900"}

{"sheet":"Journal saisie ","index":0,"n_rows":1,"n_cols":5,"rows_kept":1,"cut":false,"hidden":true,"merged":[]}
["Date","# Compte","Libellé","Débit","Crédit"]

{"sheet":"GrandLivre","index":1,"n_rows":2,"n_cols":5,"rows_kept":2,"cut":false,"hidden":false,"merged":[]}
["Date","# Compte","Libellé","Débit","Crédit"]
["X","X","X","X","X"]

{"sheet":"LCompe","index":2,"n_rows":905,"n_cols":4,"rows_kept":905,"cut":false,"hidden":true,"merged":[]}
[null,"Compte","Libellé","Description"]
[null,11111,"Capital souscrit, non appelé",{"$f":"B2&\" \"&C2","v":"11111 Capital souscrit, non appelé"}]
[null,11111,"Capital souscrit, appelé, non versé",{"$f":"B3&\" \"&C3","v":"11111 Capital souscrit, appelé, non versé"}]
[null,11111,"Capital souscrit, appelé, versé, non amorti","11111 Capital souscrit, appelé, versé, non amorti"]
[null,11111,"Capital souscrit, appelé, versé, amorti","11111 Capital souscrit, appelé, versé, amorti"]
[null,11111,"Capital souscrit soumis à des conditions particulières","11111 Capital souscrit soumis à des conditions particulières"]
[null,11111,"Dotation initiale","11111 Dotation initiale"]
[null,11111,"Dotations complémentaires","11111 Dotations complémentaires"]
[null,11111,"Autres dotations","11111 Autres dotations"]
[null,11111,"Apports temporaires","11111 Apports temporaires"]
[null,11111,"Opérations courantes","11111 Opérations courantes"]
[null,11111,"Rémunérations, impôts et autres charges personnelles","11111 Rémunérations, impôts et autres charges personnelles"]
[null,11111,"Prélèvements d’autoconsommation","11111 Prélèvements d’autoconsommation"]
[null,11111,"Autres prélèvements","11111 Autres prélèvements"]
[null,11111,"Primes d'émission","11111 Primes d'émission"]
[null,11111,"Primes d'apport ","11111 Primes d'apport "]
[null,11111,"Primes de fusion","11111 Primes de fusion"]
[null,11111,"Primes de conversion","11111 Primes de conversion"]
[null,11111,"Autres primes","11111 Autres primes"]
[null,11111,"Ecarts de réévaluation légale","11111 Ecarts de réévaluation légale"]
[null,11111,"Ecarts de réévaluation libre","11111 Ecarts de réévaluation libre"]
[null,11111,"Réserves de plus-values nettes à long terme","11111 Réserves de plus-values nettes à long terme"]
[null,11111,"Réserves d’attribution gratuite d’actions au personnel salarié et aux dirigeants","11111 Réserves d’attribution gratuite d’actions au personnel salarié et aux dirigeants"]
[null,11111,"Réserves consécutives à l'octroi de subventions d'investissement","11111 Réserves consécutives à l'octroi de subventions d'investissement"]
[null,11111,"Réserves des valeurs mobilières donnant accès au capital","11111 Réserves des valeurs mobilières donnant accès au capital"]
[null,11111,"Autres réserves réglementées","11111 Autres réserves réglementées"]
[null,11111,"Réserves facultatives","11111 Réserves facultatives"]
[null,11111,"Réserves diverses","11111 Réserves diverses"]
[null,11111,"Perte nette à reporter","11111 Perte nette à reporter"]
[null,11111,"Perte - Amortissements réputés différés","11111 Perte - Amortissements réputés différés"]
[null,11111,"Résultat en instance d'affectation : Bénéfice","11111 Résultat en instance d'affectation : Bénéfice"]
[null,11111,"Résultat en instance d'affectation : Perte","11111 Résultat en instance d'affectation : Perte"]
[null,11111,"Résultat de fusion","11111 Résultat de fusion"]
[null,11111,"Résultat d'apport partiel d'actif","11111 Résultat d'apport partiel d'actif"]
[null,11111,"Résultat de scission","11111 Résultat de scission"]
[null,11111,"Résultat de liquidation","11111 Résultat de liquidation"]
[null,11111,"Etat","11111 Etat"]
[null,11111,"Régions","11111 Régions"]
[null,11111,"Départements","11111 Départements"]
[null,11111,"Communes et collectivités publiques décentralisées","11111 Communes et collectivités publiques décentralisées"]
[null,11111,"Entités publiques ou mixtes","11111 Entités publiques ou mixtes"]
[null,11111,"Entités et organismes privés","11111 Entités et organismes privés"]
[null,11111,"Organismes internationaux","11111 Organismes internationaux"]
[null,11111,"Autres","11111 Autres"]
[null,11111,"Fonds National","11111 Fonds National"]
[null,11111,"Prélèvement pour le Budget","11111 Prélèvement pour le Budget"]
[null,11111,"Reconstitution des gisements miniers et pétroliers","11111 Reconstitution des gisements miniers et pétroliers"]
[null,11111,"Hausse de prix","11111 Hausse de prix"]
[null,11111,"Fluctuation des cours","11111 Fluctuation des cours"]
[null,11111,"Emprunts obligataires ordinaires","11111 Emprunts obligataires ordinaires"]
[null,11111,"Emprunts obligataires convertibles en actions","11111 Emprunts obligataires convertibles en actions"]
[null,11111,"Emprunts obligataires remboursables en actions","11111 Emprunts obligataires remboursables en actions"]
[null,11111,"Autres emprunts obligataires","11111 Autres emprunts obligataires"]
[null,11111,"Dépôts","11111 Dépôts"]
[null,11111,"Cautionnements","11111 Cautionnements"]
[null,11111,"sur emprunts obligataires","11111 sur emprunts obligataires"]
[null,11111,"sur emprunts et dettes auprès des établissements de crédit","11111 sur emprunts et dettes auprès des établissements de crédit"]
[null,11111,"sur avances reçues de l'Etat","11111 sur avances reçues de l'Etat"]
[null,11111,"sur avances reçues et comptes courants bloqués","11111 sur avances reçues et comptes courants bloqués"]
[null,11111,"sur dépôts et cautionnements reçus","11111 sur dépôts et cautionnements reçus"]
[null,11111,"sur avances assorties de conditions particulières","11111 sur avances assorties de conditions particulières"]
[null,11111,"sur autres emprunts et dettes","11111 sur autres emprunts et dettes"]
[null,11111,"Avances bloquées pour augmentation du capital","11111 Avances bloquées pour augmentation du capital"]
[null,11111,"Avances conditionnées par l'Etat","11111 Avances conditionnées par l'Etat"]
[null,11111,"Avances conditionnées par les autres organismes africains","11111 Avances conditionnées par les autres organismes africains"]
[null,11111,"Avances conditionnées par les organismes internationaux","11111 Avances conditionnées par les organismes internationaux"]
[null,11111,"Rentes viagères capitalisées",{"$f":"B67&\" \"&C67","v":"11111 Rentes viagères capitalisées"}]
[null,11111,"Billets de fonds","11111 Billets de fonds"]
[null,11111,"Dettes consécutives à des titres empruntés","11111 Dettes consécutives à des titres empruntés"]
[null,11111,"Emprunts participatifs","11111 Emprunts participatifs"]
[null,11111,"Participation des travailleurs aux bénéfices","11111 Participation des travailleurs aux bénéfices"]
[null,11111,"Emprunts et dettes contractés auprès des autres tiers","11111 Emprunts et dettes contractés auprès des autres tiers"]
[null,11111,"sur dettes de location-acquisition / crédit-bail immobilier","11111 sur dettes de location-acquisition / crédit-bail immobilier"]
[null,11111,"sur dettes  de  location-acquisition  / crédit-bail mobilier","11111 sur dettes  de  location-acquisition  / crédit-bail mobilier"]
[null,11111,"sur dettes  de location-acquisition / location-vente","11111 sur dettes  de location-acquisition / location-vente"]
[null,11111,"sur autres dettes  de location-acquisition","11111 sur autres dettes  de location-acquisition"]
[null,11111,"Dettes liées à des participations (groupe)","11111 Dettes liées à des participations (groupe)"]
[null,11111,"Dettes liées à des participations (hors groupe)","11111 Dettes liées à des participations (hors groupe)"]
[null,11111,"Provisions pour pensions et obligations similaires –engagement de retraite","11111 Provisions pour pensions et obligations similaires –engagement de retraite"]
[null,11111,"Actif du régime de retraite","11111 Actif du régime de retraite"]
[null,11111,"Provisions pour amendes et pénalités","11111 Provisions pour amendes et pénalités"]
[null,11111,"Provisions de propre assureur","11111 Provisions de propre assureur"]
[null,11111,"Provisions pour démantèlement et remise en état","11111 Provisions pour démantèlement et remise en état"]
[null,11111,"Provisions pour droits à réduction ou avantage en nature  (Chèques cadeaux, cartes de fidélité…)","11111 Provisions pour droits à réduction ou avantage en nature  (Chèques cadeaux, cartes de fidélité…)"]
[null,11111,"Provisions pour divers risques et charges ","11111 Provisions pour divers risques et charges "]
[null,11111,"Brevets","11111 Brevets"]
[null,11111,"Licences","11111 Licences"]
[null,11111,"Concessions de service public","11111 Concessions de service public"]
[null,11111,"Autres concessions et droits similaires","11111 Autres concessions et droits similaires"]
[null,11111,"Logiciels","11111 Logiciels"]
[null,11111,"Sites internet","11111 Sites internet"]
[null,11111,"Frais de prospection et d’évaluation de ressources minérales","11111 Frais de prospection et d’évaluation de ressources minérales"]
[null,11111,"Coûts d’obtention du contrat","11111 Coûts d’obtention du contrat"]
[null,11111,"Fichiers clients, notices, titres de journaux et magazines","11111 Fichiers clients, notices, titres de journaux et magazines"]
[null,11111,"Coûts des franchises","11111 Coûts des franchises"]
[null,11111,"Divers droits et valeurs incorporels","11111 Divers droits et valeurs incorporels"]
[null,11111,"Frais de développement ","11111 Frais de développement "]
[null,11111,"Logiciels et sites internet ","11111 Logiciels et sites internet "]
[null,11111,"Autres droits et valeurs incorporels","11111 Autres droits et valeurs incorporels"]
[null,11111,"Terrains d'exploitation agricole","11111 Terrains d'exploitation agricole"]
[null,11111,"Terrains d'exploitation forestière","11111 Terrains d'exploitation forestière"]
[null,11111,"Autres terrains","11111 Autres terrains"]
[null,11111,"Terrains à bâtir","11111 Terrains à bâtir"]
[null,11111,"Autres terrains nus","11111 Autres terrains nus"]
[null,11111,"pour bâtiments industriels et agricoles","11111 pour bâtiments industriels et agricoles"]
[null,11111,"pour bâtiments administratifs et commerciaux","11111 pour bâtiments administratifs et commerciaux"]
[null,11111,"pour bâtiments affectés aux autres opérations professionnelles","11111 pour bâtiments affectés aux autres opérations professionnelles"]
[null,11111,"pour bâtiments affectés aux autres opérations non professionnelles","11111 pour bâtiments affectés aux autres opérations non professionnelles"]
[null,11111,"Autres terrains bâtis","11111 Autres terrains bâtis"]
[null,11111,"Plantation d'arbres et d'arbustes","11111 Plantation d'arbres et d'arbustes"]
[null,11111,"Améliorations du fonds","11111 Améliorations du fonds"]
[null,11111,"Autres travaux","11111 Autres travaux"]
[null,11111,"Carrières","11111 Carrières"]
[null,11111,"Parkings","11111 Parkings"]
[null,11111,"Terrains  - immeubles de placement ","11111 Terrains  - immeubles de placement "]
[null,11111,"Terrains des logements affectés au personnel","11111 Terrains des logements affectés au personnel"]
[null,11111,"Terrains de location - acquisition","11111 Terrains de location - acquisition"]
[null,11111,"Divers terrains","11111 Divers terrains"]
[null,11111,"Terrains agricoles et forestiers","11111 Terrains agricoles et forestiers"]
[null,11111,"Terrains nus","11111 Terrains nus"]
[null,11111,"Terrains de  carrières - tréfonds ","11111 Terrains de  carrières - tréfonds "]
[null,11111,"Autres terrains","11111 Autres terrains"]
[null,11111,"Bâtiments industriels","11111 Bâtiments industriels"]
[null,11111,"Bâtiments agricoles","11111 Bâtiments agricoles"]
[null,11111,"Bâtiments administratifs et commerciaux","11111 Bâtiments administratifs et commerciaux"]
[null,11111,"Bâtiments affectés au logement du personnel","11111 Bâtiments affectés au logement du personnel"]
[null,11111,"Bâtiments - immeubles de placement ","11111 Bâtiments - immeubles de placement "]
[null,11111,"Bâtiments de location - acquisition","11111 Bâtiments de location - acquisition"]
[null,11111,"Bâtiments industriels","11111 Bâtiments industriels"]
[null,11111,"Bâtiments agricoles","11111 Bâtiments agricoles"]
[null,11111,"Bâtiments administratifs et commerciaux",{"$f":"B131&\" \"&C131","v":"11111 Bâtiments administratifs et commerciaux"}]
[null,11111,"Bâtiments affectés au logement du personnel","11111 Bâtiments affectés au logement du personnel"]
[null,11111,"Bâtiments - immeubles de placement ","11111 Bâtiments - immeubles de placement "]
[null,11111,"Bâtiments de location - acquisition","11111 Bâtiments de location - acquisition"]
[null,11111,"Voies de terre","11111 Voies de terre"]
[null,11111,"Voies de fer","11111 Voies de fer"]
[null,11111,"Voies d’eau","11111 Voies d’eau"]
[null,11111,"Barrages, Digues","11111 Barrages, Digues"]
[null,11111,"Pistes d’aérodrome","11111 Pistes d’aérodrome"]
[null,11111,"Autres ouvrages d’infrastructures","11111 Autres ouvrages d’infrastructures"]
[null,11111,"Installations complexes spécialisées sur sol propre","11111 Installations complexes spécialisées sur sol propre"]
[null,11111,"Installations complexes spécialisées sur sol d’autrui","11111 Installations complexes spécialisées sur sol d’autrui"]
[null,11111,"Installations à caractère spécifique sur sol propre","11111 Installations à caractère spécifique sur sol propre"]
[null,11111,"Installations à caractère spécifique sur sol d’autrui","11111 Installations à caractère spécifique sur sol d’autrui"]
[null,11111,"Aménagements et agencements des bâtiments","11111 Aménagements et agencements des bâtiments"]
[null,11111,"Installations générales","11111 Installations générales"]
[null,11111,"Autres aménagements de bureaux","11111 Autres aménagements de bureaux"]
[null,11111,"Bâtiments en cours","11111 Bâtiments en cours"]
[null,11111,"Installations en cours","11111 Installations en cours"]
[null,11111,"Ouvrages d’infrastructure en cours","11111 Ouvrages d’infrastructure en cours"]
[null,11111,"Aménagements, agencements et installations techniques  en cours","11111 Aménagements, agencements et installations techniques  en cours"]
[null,11111,"Aménagements de bureaux en cours","11111 Aménagements de bureaux en cours"]
[null,11111,"Autres installations et agencements en cours","11111 Autres installations et agencements en cours"]
[null,11111,"Matériel industriel","11111 Matériel industriel"]
[null,11111,"Outillage industriel","11111 Outillage industriel"]
[null,11111,"Matériel commercial","11111 Matériel commercial"]
[null,11111,"Outillage commercial","11111 Outillage commercial"]
[null,11111,"Matériel et outillage industriel et commercial de location – acquisition","11111 Matériel et outillage industriel et commercial de location – acquisition"]
[null,11111,"Matériel agricole","11111 Matériel agricole"]
[null,11111,"Outillage agricole","11111 Outillage agricole"]
[null,11111,"Matériel et outillage agricole de location – acquisition","11111 Matériel et outillage agricole de location – acquisition"]
[null,11111,"Matériel de bureau","11111 Matériel de bureau"]
[null,11111,"Matériel informatique","11111 Matériel informatique"]
[null,11111,"Matériel bureautique","11111 Matériel bureautique"]
[null,11111,"Mobilier de bureau","11111 Mobilier de bureau"]
[null,11111,"Matériel et mobilier - immeubles de placement","11111 Matériel et mobilier - immeubles de placement"]
[null,11111,"Matériel et mobilier de location - acquisition","11111 Matériel et mobilier de location - acquisition"]
[null,11111,"Matériel et mobilier des logements du personnel","11111 Matériel et mobilier des logements du personnel"]
[null,11111,"Matériel automobile","11111 Matériel automobile"]
[null,11111,"Matériel ferroviaire","11111 Matériel ferroviaire"]
[null,11111,"Matériel fluvial, lagunaire","11111 Matériel fluvial, lagunaire"]
[null,11111,"Matériel naval","11111 Matériel naval"]
[null,11111,"Matériel aérien","11111 Matériel aérien"]
[null,11111,"Matériel de transport de location - acquisition","11111 Matériel de transport de location - acquisition"]
[null,11111,"Matériel hippomobile","11111 Matériel hippomobile"]
[null,11111,"Autres matériels de transport","11111 Autres matériels de transport"]
[null,11111,"Cheptel, animaux de trait","11111 Cheptel, animaux de trait"]
[null,11111,"Cheptel, animaux reproducteurs","11111 Cheptel, animaux reproducteurs"]
[null,11111,"Animaux de garde","11111 Animaux de garde"]
[null,11111,"Plantations agricoles","11111 Plantations agricoles"]
[null,11111,"Autres actifs biologiques","11111 Autres actifs biologiques"]
[null,11111,"Agencements et aménagements du matériel","11111 Agencements et aménagements du matériel"]
[null,11111,"Agencements et aménagements des actifs biologiques","11111 Agencements et aménagements des actifs biologiques"]
[null,11111,"Autres agencements, aménagements du matériel et actifs biologiques","11111 Autres agencements, aménagements du matériel et actifs biologiques"]
[null,11111,"Collections et œuvres d’art","11111 Collections et œuvres d’art"]
[null,11111,"Divers matériels et mobiliers","11111 Divers matériels et mobiliers"]
[null,11111,"Matériel et outillage industriel et commercial","11111 Matériel et outillage industriel et commercial"]
[null,11111,"Matériel et outillage agricole","11111 Matériel et outillage agricole"]
[null,11111,"Matériel d’emballage récupérable et identifiable","11111 Matériel d’emballage récupérable et identifiable"]
[null,11111,"Matériel et mobilier de bureau","11111 Matériel et mobilier de bureau"]
[null,11111,"Matériel de transport","11111 Matériel de transport"]
[null,11111,"Actifs biologiques ","11111 Actifs biologiques "]
[null,11111,"Agencements et aménagements du matériel et des actifs biologiques","11111 Agencements et aménagements du matériel et des actifs biologiques"]
[null,11111,"Autres matériels et actifs biologiques ","11111 Autres matériels et actifs biologiques "]
[null,11111,"Prêts participatifs",{"$f":"B195&\" \"&C195","v":"11111 Prêts participatifs"}]
[null,11111,"Prêts aux associés","11111 Prêts aux associés"]
[null,11111,"Billets de fonds","11111 Billets de fonds"]
[null,11111,"Créances de location-financement","11111 Créances de location-financement"]
[null,11111,"Titres prêtés","11111 Titres prêtés"]
[null,11111,"Autres prêts et créances","11111 Autres prêts et créances"]
[null,11111,"Prêts immobiliers","11111 Prêts immobiliers"]
[null,11111,"Prêts mobiliers et d’installation","11111 Prêts mobiliers et d’installation"]
[null,11111,"Autres prêts au personnel","11111 Autres prêts au personnel"]
[null,11111,"Retenues de garantie","11111 Retenues de garantie"]
[null,11111,"Fonds réglementé","11111 Fonds réglementé"]
[null,11111,"Créances sur le concédant","11111 Créances sur le concédant"]
[null,11111,"Autres créances sur l’Etat","11111 Autres créances sur l’Etat"]
[null,11111,"Titres immobilisés de l’activité de portefeuille (T.I.A.P.)","11111 Titres immobilisés de l’activité de portefeuille (T.I.A.P.)"]
[null,11111,"Titres participatifs","11111 Titres participatifs"]
[null,11111,"Certificats d’investissement","11111 Certificats d’investissement"]
[null,11111,"Parts de fonds commun de placement (F.C.P.)","11111 Parts de fonds commun de placement (F.C.P.)"]
[null,11111,"Obligations","11111 Obligations"]
[null,11111,"Actions ou parts propres","11111 Actions ou parts propres"]
[null,11111,"Autres titres immobilisés","11111 Autres titres immobilisés"]
[null,11111,"Dépôts pour loyers d’avance","11111 Dépôts pour loyers d’avance"]
[null,11111,"Dépôts pour l’électricité","11111 Dépôts pour l’électricité"]
[null,11111,"Dépôts pour l’eau","11111 Dépôts pour l’eau"]
[null,11111,"Dépôts pour le gaz","11111 Dépôts pour le gaz"]
[null,11111,"Dépôts pour le téléphone, le télex, la télécopie","11111 Dépôts pour le téléphone, le télex, la télécopie"]
[null,11111,"Cautionnements sur marchés publics","11111 Cautionnements sur marchés publics"]
[null,11111,"Cautionnements sur autres opérations","11111 Cautionnements sur autres opérations"]
[null,11111,"Autres dépôts et cautionnements","11111 Autres dépôts et cautionnements"]
[null,11111,"Prêts et créances non commerciales","11111 Prêts et créances non commerciales"]
[null,11111,"Prêts au personnel","11111 Prêts au personnel"]
[null,11111,"Créances sur l'Etat","11111 Créances sur l'Etat"]
[null,11111,"Titres immobilisés","11111 Titres immobilisés"]
[null,11111,"Dépôts et cautionnements versés","11111 Dépôts et cautionnements versés"]
[null,11111,"Créances de location-financement","11111 Créances de location-financement"]
[null,11111,"Créances rattachées à des participations","11111 Créances rattachées à des participations"]
[null,11111,"Immobilisations financières diverses","11111 Immobilisations financières diverses"]
[null,11111,"Créances rattachées à des participations (groupe)","11111 Créances rattachées à des participations (groupe)"]
[null,11111,"Créances rattachées à des participations (hors groupe)","11111 Créances rattachées à des participations (hors groupe)"]
[null,11111,"Créances rattachées à des sociétés en participation","11111 Créances rattachées à des sociétés en participation"]
[null,11111,"Avances à des Groupements d'intérêt économique (G.I.E.)","11111 Avances à des Groupements d'intérêt économique (G.I.E.)"]
[null,11111,"Créances diverses groupe","11111 Créances diverses groupe"]
[null,11111,"Créances diverses hors groupe","11111 Créances diverses hors groupe"]
[null,11111,"Banques dépôts à terme","11111 Banques dépôts à terme"]
[null,11111,"Or et métaux précieux (1)","11111 Or et métaux précieux (1)"]
[null,11111,"Autres immobilisations financières","11111 Autres immobilisations financières"]
[null,11111,"Amortissements des frais de développement","11111 Amortissements des frais de développement"]
[null,11111,"Amortissements des brevets, licences, concessions et droits similaires","11111 Amortissements des brevets, licences, concessions et droits similaires"]
[null,11111,"Amortissements des logiciels et sites internet","11111 Amortissements des logiciels et sites internet"]
[null,11111,"Amortissements des marques","11111 Amortissements des marques"]
[null,11111,"Amortissements du fonds commercial","11111 Amortissements du fonds commercial"]
[null,11111,"Amortissements du droit au bail","11111 Amortissements du droit au bail"]
[null,11111,"Amortissements des investissements de création","11111 Amortissements des investissements de création"]
[null,11111,"Amortissements des autres droits et valeurs incorporels","11111 Amortissements des autres droits et valeurs incorporels"]
[null,11111,"Amortissements des travaux de mise en valeur des terrains","11111 Amortissements des travaux de mise en valeur des terrains"]
[null,11111,"Amortissements des bâtiments industriels, agricoles, administratifs et commerciaux sur sol propre","11111 Amortissements des bâtiments industriels, agricoles, administratifs et commerciaux sur sol propre"]
[null,11111,"Amortissements des bâtiments industriels, agricoles, administratifs et commerciaux sur sol d'autrui","11111 Amortissements des bâtiments industriels, agricoles, administratifs et commerciaux sur sol d'autrui"]
[null,11111,"Amortissements des ouvrages d'infrastructure","11111 Amortissements des ouvrages d'infrastructure"]
[null,11111,"Amortissements des aménagements, agencements et installations techniques","11111 Amortissements des aménagements, agencements et installations techniques"]
[null,11111,"Amortissements des aménagements de bureaux","11111 Amortissements des aménagements de bureaux"]
[null,11111,"Amortissements des bâtiments industriels, agricoles et commerciaux mis en concession","11111 Amortissements des bâtiments industriels, agricoles et commerciaux mis en concession"]
[null,11111,"Amortissements des autres installations et agencements","11111 Amortissements des autres installations et agencements"]
[null,11111,"Amortissements du matériel et outillage industriel et commercial","11111 Amortissements du matériel et outillage industriel et commercial"]
[null,11111,"Amortissements du matériel et outillage agricole","11111 Amortissements du matériel et outillage agricole"]
[null,11111,"Amortissements du matériel d'emballage récupérable et identifiable","11111 Amortissements du matériel d'emballage récupérable et identifiable"]
[null,11111,"Amortissements du matériel et mobilier ",{"$f":"B259&\" \"&C259","v":"11111 Amortissements du matériel et mobilier "}]
[null,11111,"Amortissements du matériel de transport","11111 Amortissements du matériel de transport"]
[null,11111,"Amortissements des actifs biologiques ","11111 Amortissements des actifs biologiques "]
[null,11111,"Amortissements des agencements, aménagements du matériel et des actifs biologiques","11111 Amortissements des agencements, aménagements du matériel et des actifs biologiques"]
[null,11111,"Amortissements des autres matériels","11111 Amortissements des autres matériels"]
[null,11111,"Dépréciations des frais de développement","11111 Dépréciations des frais de développement"]
[null,11111,"Dépréciations des brevets, licences, concessions  et droits similaires","11111 Dépréciations des brevets, licences, concessions  et droits similaires"]
[null,11111,"Dépréciations des logiciels et sites internet","11111 Dépréciations des logiciels et sites internet"]
[null,11111,"Dépréciations des marques","11111 Dépréciations des marques"]
[null,11111,"Dépréciations du fonds commercial","11111 Dépréciations du fonds commercial"]
[null,11111,"Dépréciations du droit au bail","11111 Dépréciations du droit au bail"]
[null,11111,"Dépréciations des investissements de création","11111 Dépréciations des investissements de création"]
[null,11111,"Dépréciations des autres droits et valeurs incorporels","11111 Dépréciations des autres droits et valeurs incorporels"]
[null,11111,"Dépréciations des immobilisations incorporelles en cours","11111 Dépréciations des immobilisations incorporelles en cours"]
[null,11111,"Dépréciations des terrains agricoles et forestiers","11111 Dépréciations des terrains agricoles et forestiers"]
[null,11111,"Dépréciations des terrains nus","11111 Dépréciations des terrains nus"]
[null,11111,"Dépréciations des terrains bâtis","11111 Dépréciations des terrains bâtis"]
[null,11111,"Dépréciations des travaux de mise en valeur des terrains","11111 Dépréciations des travaux de mise en valeur des terrains"]
[null,11111,"Dépréciations des terrains de carrières-tréfonds","11111 Dépréciations des terrains de carrières-tréfonds"]
[null,11111,"Dépréciations des terrains aménagés","11111 Dépréciations des terrains aménagés"]
[null,11111,"Dépréciations des terrains mis en concession","11111 Dépréciations des terrains mis en concession"]
[null,11111,"Dépréciations des autres terrains","11111 Dépréciations des autres terrains"]
[null,11111,"Dépréciations des aménagements de terrains en cours","11111 Dépréciations des aménagements de terrains en cours"]
[null,11111,"Dépréciations des bâtiments industriels, agricoles, administratifs et commerciaux ","11111 Dépréciations des bâtiments industriels, agricoles, administratifs et commerciaux "]
[null,11111,"Dépréciations des bâtiments industriels, agricoles, administratifs et commerciaux","11111 Dépréciations des bâtiments industriels, agricoles, administratifs et commerciaux"]
[null,11111,"Dépréciations des ouvrages d'infrastructures","11111 Dépréciations des ouvrages d'infrastructures"]
[null,11111,"Dépréciations des aménagements, agencements et installations techniques","11111 Dépréciations des aménagements, agencements et installations techniques"]
[null,11111,"Dépréciations des aménagements de bureaux","11111 Dépréciations des aménagements de bureaux"]
[null,11111,"Dépréciations des bâtiments industriels, agricoles et commerciaux","11111 Dépréciations des bâtiments industriels, agricoles et commerciaux"]
[null,11111,"Dépréciations des autres installations et agencements","11111 Dépréciations des autres installations et agencements"]
[null,11111,"Dépréciations des bâtiments et installations en cours","11111 Dépréciations des bâtiments et installations en cours"]
[null,11111,"Dépréciations du matériel et outillage industriel et commercial","11111 Dépréciations du matériel et outillage industriel et commercial"]
[null,11111,"Dépréciations du matériel et outillage agricole","11111 Dépréciations du matériel et outillage agricole"]
[null,11111,"Dépréciations du matériel d'emballage récupérable et identifiable","11111 Dépréciations du matériel d'emballage récupérable et identifiable"]
[null,11111,"Dépréciations du matériel et mobilier ","11111 Dépréciations du matériel et mobilier "]
[null,11111,"Dépréciations du matériel de transport","11111 Dépréciations du matériel de transport"]
[null,11111,"Dépréciations des actifs biologiques  ","11111 Dépréciations des actifs biologiques  "]
[null,11111,"Dépréciations des agencements, aménagements du matériel et des actifs biologiques","11111 Dépréciations des agencements, aménagements du matériel et des actifs biologiques"]
[null,11111,"Dépréciations des autres matériels","11111 Dépréciations des autres matériels"]
[null,11111,"Dépréciations de matériel en cours","11111 Dépréciations de matériel en cours"]
[null,11111,"Dépréciations des avances et acomptes versés sur immobilisations incorporelles","11111 Dépréciations des avances et acomptes versés sur immobilisations incorporelles"]
[null,11111,"Dépréciations des avances et acomptes versés sur immobilisations corporelles","11111 Dépréciations des avances et acomptes versés sur immobilisations corporelles"]
[null,11111,"Dépréciations des titres de participation dans des entités sous contrôle exclusif","11111 Dépréciations des titres de participation dans des entités sous contrôle exclusif"]
[null,11111,"Dépréciations des titres de participation dans des entités sous contrôle conjoint","11111 Dépréciations des titres de participation dans des entités sous contrôle conjoint"]
[null,11111,"Dépréciations des titres de participation dans des entités conférant une influence notable","11111 Dépréciations des titres de participation dans des entités conférant une influence notable"]
[null,11111,"Dépréciations des participations dans des organismes professionnels","11111 Dépréciations des participations dans des organismes professionnels"]
[null,11111,"Dépréciations des parts dans des GIE","11111 Dépréciations des parts dans des GIE"]
[null,11111,"Dépréciations des autres titres de participation","11111 Dépréciations des autres titres de participation"]
[null,11111,"Dépréciations des prêts et créances ","11111 Dépréciations des prêts et créances "]
[null,11111,"Dépréciations des prêts au personnel","11111 Dépréciations des prêts au personnel"]
[null,11111,"Dépréciations des créances sur l'Etat","11111 Dépréciations des créances sur l'Etat"]
[null,11111,"Dépréciations des titres immobilisés","11111 Dépréciations des titres immobilisés"]
[null,11111,"Dépréciations des dépôts et cautionnements versés","11111 Dépréciations des dépôts et cautionnements versés"]
[null,11111,"Dépréciations des créances rattachées à des participations et avances à des GIE","11111 Dépréciations des créances rattachées à des participations et avances à des GIE"]
[null,11111,"Dépréciations des créances financières diverses","11111 Dépréciations des créances financières diverses"]
[null,11111,"Marchandises A1","11111 Marchandises A1"]
[null,11111,"Marchandises A2","11111 Marchandises A2"]
[null,11111,"Marchandises B1","11111 Marchandises B1"]
[null,11111,"Marchandises B2","11111 Marchandises B2"]
[null,11111,"Animaux ","11111 Animaux "]
[null,11111,"Végétaux","11111 Végétaux"]
[null,11111,"Emballages perdus","11111 Emballages perdus"]
[null,11111,"Emballages récupérables non identifiables","11111 Emballages récupérables non identifiables"]
[null,11111,"Emballages à usage mixte","11111 Emballages à usage mixte"]
[null,11111,"Autres emballages",{"$f":"B323&\" \"&C323","v":"11111 Autres emballages"}]
[null,11111,"Produits en cours P1","11111 Produits en cours P1"]
[null,11111,"Produits en cours P2","11111 Produits en cours P2"]
[null,11111,"Travaux en cours T1","11111 Travaux en cours T1"]
[null,11111,"Travaux en cours T2","11111 Travaux en cours T2"]
[null,11111,"Produits intermédiaires A","11111 Produits intermédiaires A"]
[null,11111,"Produits intermédiaires B","11111 Produits intermédiaires B"]
[null,11111,"Produits résiduels A","11111 Produits résiduels A"]
[null,11111,"Produits résiduels B","11111 Produits résiduels B"]
[null,11111,"Animaux","11111 Animaux"]
[null,11111,"Végétaux   ","11111 Végétaux   "]
[null,11111,"Etudes en cours E1","11111 Etudes en cours E1"]
[null,11111,"Etudes en cours E2","11111 Etudes en cours E2"]
[null,11111,"Prestations de services S1","11111 Prestations de services S1"]
[null,11111,"Prestations de services S2","11111 Prestations de services S2"]
[null,11111,"Animaux","11111 Animaux"]
[null,11111,"Végétaux","11111 Végétaux"]
[null,11111,"Autres stocks (activités annexes)","11111 Autres stocks (activités annexes)"]
[null,11111,"Produits intermédiaires A","11111 Produits intermédiaires A"]
[null,11111,"Produits intermédiaires B","11111 Produits intermédiaires B"]
[null,11111,"Déchets","11111 Déchets"]
[null,11111,"Rebuts","11111 Rebuts"]
[null,11111,"Matières de récupération","11111 Matières de récupération"]
[null,11111,"Animaux","11111 Animaux"]
[null,11111,"Végétaux","11111 Végétaux"]
[null,11111,"Autres stocks (activités annexes)","11111 Autres stocks (activités annexes)"]
[null,11111,"Stock en consignation","11111 Stock en consignation"]
[null,11111,"Stock en dépôt","11111 Stock en dépôt"]
[null,11111,"Fournisseurs","11111 Fournisseurs"]
[null,11111,"Fournisseurs Groupe","11111 Fournisseurs Groupe"]
[null,11111,"Fournisseurs sous-traitants","11111 Fournisseurs sous-traitants"]
[null,11111,"Fournisseurs, réserve de propriété","11111 Fournisseurs, réserve de propriété"]
[null,11111,"Fournisseurs, retenues de garantie","11111 Fournisseurs, retenues de garantie"]
[null,11111,"Fournisseurs, Effets à payer","11111 Fournisseurs, Effets à payer"]
[null,11111,"Fournisseurs - Groupe, Effets à payer","11111 Fournisseurs - Groupe, Effets à payer"]
[null,11111,"Fournisseurs sous-traitants, Effets à payer","11111 Fournisseurs sous-traitants, Effets à payer"]
[null,11111,"Fournisseurs dettes en compte, immobilisations incorporelles","11111 Fournisseurs dettes en compte, immobilisations incorporelles"]
[null,11111,"Fournisseurs dettes en compte, immobilisations corporelles","11111 Fournisseurs dettes en compte, immobilisations corporelles"]
[null,11111,"Fournisseurs effets à payer, immobilisations incorporelles","11111 Fournisseurs effets à payer, immobilisations incorporelles"]
[null,11111,"Fournisseurs effets à payer, immobilisations corporelles","11111 Fournisseurs effets à payer, immobilisations corporelles"]
[null,11111,"Fournisseurs ","11111 Fournisseurs "]
[null,11111,"Fournisseurs - Groupe","11111 Fournisseurs - Groupe"]
[null,11111,"Fournisseurs sous-traitants","11111 Fournisseurs sous-traitants"]
[null,11111,"Fournisseurs, intérêts courus","11111 Fournisseurs, intérêts courus"]
[null,11111,"Fournisseurs avances et acomptes versés","11111 Fournisseurs avances et acomptes versés"]
[null,11111,"Fournisseurs - Groupe avances et acomptes versés ","11111 Fournisseurs - Groupe avances et acomptes versés "]
[null,11111,"Fournisseurs sous-traitants avances et acomptes versés ","11111 Fournisseurs sous-traitants avances et acomptes versés "]
[null,11111,"Fournisseurs créances pour emballages et matériels à rendre","11111 Fournisseurs créances pour emballages et matériels à rendre"]
[null,11111,"Fournisseurs, rabais, remises, ristournes et autres avoirs à obtenir","11111 Fournisseurs, rabais, remises, ristournes et autres avoirs à obtenir"]
[null,11111,"Clients","11111 Clients"]
[null,11111,"Clients - Groupe","11111 Clients - Groupe"]
[null,11111,"Clients, Etat et Collectivités publiques","11111 Clients, Etat et Collectivités publiques"]
[null,11111,"Clients, organismes internationaux","11111 Clients, organismes internationaux"]
[null,11111,"Clients, réserve de propriété","11111 Clients, réserve de propriété"]
[null,11111,"Clients, retenues de garantie","11111 Clients, retenues de garantie"]
[null,11111,"Clients, dégrèvement de Taxes sur la Valeur Ajoutée (T.V.A.)","11111 Clients, dégrèvement de Taxes sur la Valeur Ajoutée (T.V.A.)"]
[null,11111,"Clients, Effets à recevoir","11111 Clients, Effets à recevoir"]
[null,11111,"Clients - Groupe, Effets à recevoir","11111 Clients - Groupe, Effets à recevoir"]
[null,11111,"Etat et Collectivités publiques, Effets à recevoir","11111 Etat et Collectivités publiques, Effets à recevoir"]
[null,11111,"Organismes Internationaux, Effets à recevoir","11111 Organismes Internationaux, Effets à recevoir"]
[null,11111,"Clients, chèques impayés","11111 Clients, chèques impayés"]
[null,11111,"Clients, Effets impayés","11111 Clients, Effets impayés"]
[null,11111,"Clients, cartes de crédit impayées","11111 Clients, cartes de crédit impayées"]
[null,11111,"Clients, autres valeurs impayées","11111 Clients, autres valeurs impayées"]
[null,11111,"Créances en compte, immobilisations incorporelles",{"$f":"B387&\" \"&C387","v":"11111 Créances en compte, immobilisations incorporelles"}]
[null,11111,"Créances en compte, immobilisations corporelles","11111 Créances en compte, immobilisations corporelles"]
[null,11111,"Effets à recevoir, immobilisations incorporelles","11111 Effets à recevoir, immobilisations incorporelles"]
[null,11111,"Effets à recevoir, immobilisations corporelles","11111 Effets à recevoir, immobilisations corporelles"]
[null,11111,"Créances litigieuses","11111 Créances litigieuses"]
[null,11111,"Créances douteuses","11111 Créances douteuses"]
[null,11111,"Clients, factures à établir","11111 Clients, factures à établir"]
[null,11111,"Clients, intérêts courus","11111 Clients, intérêts courus"]
[null,11111,"Clients, avances et acomptes reçus","11111 Clients, avances et acomptes reçus"]
[null,11111,"Clients - Groupe, avances et acomptes reçus","11111 Clients - Groupe, avances et acomptes reçus"]
[null,11111,"Clients, dettes pour emballages et matériels consignés","11111 Clients, dettes pour emballages et matériels consignés"]
[null,11111,"Clients, rabais, remises, ristournes et autres avoirs à accorder","11111 Clients, rabais, remises, ristournes et autres avoirs à accorder"]
[null,11111,"Personnel, avances ","11111 Personnel, avances "]
[null,11111,"Personnel, acomptes","11111 Personnel, acomptes"]
[null,11111,"Frais avancés et fournitures au personnel","11111 Frais avancés et fournitures au personnel"]
[null,11111,"Personnel, oppositions","11111 Personnel, oppositions"]
[null,11111,"Personnel, saisies-arrêts","11111 Personnel, saisies-arrêts"]
[null,11111,"Personnel, avis à tiers détenteur","11111 Personnel, avis à tiers détenteur"]
[null,11111,"Assistance médicale","11111 Assistance médicale"]
[null,11111,"Allocations familiales","11111 Allocations familiales"]
[null,11111,"Organismes sociaux rattachés à l'entité","11111 Organismes sociaux rattachés à l'entité"]
[null,11111,"Autres oeuvres sociales internes","11111 Autres oeuvres sociales internes"]
[null,11111,"Délégués du personnel","11111 Délégués du personnel"]
[null,11111,"Syndicats et Comités d'entreprises, d'Etablissement","11111 Syndicats et Comités d'entreprises, d'Etablissement"]
[null,11111,"Autres représentants du personnel","11111 Autres représentants du personnel"]
[null,11111,"Participation aux bénéfices","11111 Participation aux bénéfices"]
[null,11111,"Participation au capital","11111 Participation au capital"]
[null,11111,"Dettes provisionnées pour congés à payer","11111 Dettes provisionnées pour congés à payer"]
[null,11111,"Autres charges à payer","11111 Autres charges à payer"]
[null,11111,"Produits à recevoir","11111 Produits à recevoir"]
[null,11111,"Prestations familiales","11111 Prestations familiales"]
[null,11111,"Accidents de travail","11111 Accidents de travail"]
[null,11111,"Caisse de retraite obligatoire","11111 Caisse de retraite obligatoire"]
[null,11111,"Caisse de retraite facultative","11111 Caisse de retraite facultative"]
[null,11111,"Autres cotisations sociales","11111 Autres cotisations sociales"]
[null,11111,"Mutuelle","11111 Mutuelle"]
[null,11111,"Assurances Retraite","11111 Assurances Retraite"]
[null,11111,"Assurances et organismes de santé","11111 Assurances et organismes de santé"]
[null,11111,"T.V.A. facturée sur production livrée à soi-même","11111 T.V.A. facturée sur production livrée à soi-même"]
[null,11111,"T.V.A. sur factures à établir","11111 T.V.A. sur factures à établir"]
[null,11111,"Charges sociales sur gratifications à payer","11111 Charges sociales sur gratifications à payer"]
[null,11111,"Charges sociales sur congés à payer","11111 Charges sociales sur congés à payer"]
[null,11111,"Autres charges à payer","11111 Autres charges à payer"]
[null,11111,"Produits à recevoir","11111 Produits à recevoir"]
[null,11111,"Impôts et taxes d'Etat","11111 Impôts et taxes d'Etat"]
[null,11111,"Impôts et taxes pour les collectivités publiques","11111 Impôts et taxes pour les collectivités publiques"]
[null,11111,"Impôts et taxes recouvrables sur des obligataires","11111 Impôts et taxes recouvrables sur des obligataires"]
[null,11111,"Impôts et taxes recouvrables sur des associés","11111 Impôts et taxes recouvrables sur des associés"]
[null,11111,"Droits de douane","11111 Droits de douane"]
[null,11111,"Autres impôts et taxes","11111 Autres impôts et taxes"]
[null,11111,"T.V.A. facturée sur ventes","11111 T.V.A. facturée sur ventes"]
[null,11111,"T.V.A. facturée sur prestations de services","11111 T.V.A. facturée sur prestations de services"]
[null,11111,"T.V.A. facturée sur travaux","11111 T.V.A. facturée sur travaux"]
[null,11111,"Etat, T.V.A. due","11111 Etat, T.V.A. due"]
[null,11111,"Etat, dégrèvement T.V.A.","11111 Etat, dégrèvement T.V.A."]
[null,11111,"Etat, crédit de T.V.A. à reporter","11111 Etat, crédit de T.V.A. à reporter"]
[null,11111,"T.V.A. récupérable sur immobilisations","11111 T.V.A. récupérable sur immobilisations"]
[null,11111,"T.V.A. récupérable sur achats","11111 T.V.A. récupérable sur achats"]
[null,11111,"T.V.A. récupérable sur transport","11111 T.V.A. récupérable sur transport"]
[null,11111,"T.V.A. récupérable sur services extérieurs et autres charges","11111 T.V.A. récupérable sur services extérieurs et autres charges"]
[null,11111,"T.V.A. récupérable sur factures non parvenues","11111 T.V.A. récupérable sur factures non parvenues"]
[null,11111,"T.V.A. transférée par d'autres entités","11111 T.V.A. transférée par d'autres entités"]
[null,11111,"Impôt Général sur le revenu","11111 Impôt Général sur le revenu"]
[null,11111,"Impôts sur salaires","11111 Impôts sur salaires"]
[null,11111,"Contribution nationale",{"$f":"B451&\" \"&C451","v":"11111 Contribution nationale"}]
[null,11111,"Contribution nationale de solidarité","11111 Contribution nationale de solidarité"]
[null,11111,"Autres impôts et contributions","11111 Autres impôts et contributions"]
[null,11111,"Charges à payer","11111 Charges à payer"]
[null,11111,"Produits à recevoir","11111 Produits à recevoir"]
[null,11111,"Etat, obligations cautionnées","11111 Etat, obligations cautionnées"]
[null,11111,"Etat, avances et acomptes versés sur impôts","11111 Etat, avances et acomptes versés sur impôts"]
[null,11111,"Etat, fonds de dotation à recevoir","11111 Etat, fonds de dotation à recevoir"]
[null,11111,"Etat, subventions d'investissement à recevoir","11111 Etat, subventions d'investissement à recevoir"]
[null,11111,"Etat, subventions d'exploitation à recevoir","11111 Etat, subventions d'exploitation à recevoir"]
[null,11111,"Etat, subventions d'équilibre à recevoir","11111 Etat, subventions d'équilibre à recevoir"]
[null,11111,"Etat, avances sur subventions ","11111 Etat, avances sur subventions "]
[null,11111,"Etat, fonds réglementé provisionné","11111 Etat, fonds réglementé provisionné"]
[null,11111,"Organismes internationaux, fonds de dotation à recevoir","11111 Organismes internationaux, fonds de dotation à recevoir"]
[null,11111,"Organismes internationaux, subventions à recevoir","11111 Organismes internationaux, subventions à recevoir"]
[null,11111,"Apporteurs, apports en nature","11111 Apporteurs, apports en nature"]
[null,11111,"Apporteurs, apports en numéraire","11111 Apporteurs, apports en numéraire"]
[null,11111,"Apporteurs, capital appelé, non versé","11111 Apporteurs, capital appelé, non versé"]
[null,11111,"Apporteurs, compte d’apport, opérations de restructuration (fusion…)","11111 Apporteurs, compte d’apport, opérations de restructuration (fusion…)"]
[null,11111,"Apporteurs, versements reçus sur augmentation de capital","11111 Apporteurs, versements reçus sur augmentation de capital"]
[null,11111,"Apporteurs, versements anticipés","11111 Apporteurs, versements anticipés"]
[null,11111,"Apporteurs défaillants","11111 Apporteurs défaillants"]
[null,11111,"Apporteurs, titres à échanger","11111 Apporteurs, titres à échanger"]
[null,11111,"Apporteurs, capital à rembourser ","11111 Apporteurs, capital à rembourser "]
[null,11111,"Principal","11111 Principal"]
[null,11111,"Intérêts courus","11111 Intérêts courus"]
[null,11111,"Opérations courantes","11111 Opérations courantes"]
[null,11111,"Intérêts courus","11111 Intérêts courus"]
[null,11111,"Débiteurs divers","11111 Débiteurs divers"]
[null,11111,"Créditeurs divers","11111 Créditeurs divers"]
[null,11111,"Obligataires ","11111 Obligataires "]
[null,11111,"Rémunérations d’administrateurs non associés","11111 Rémunérations d’administrateurs non associés"]
[null,11111,"Compte d’affacturage et de titrisation","11111 Compte d’affacturage et de titrisation"]
[null,11111,"Débiteurs divers - retenues de garantie","11111 Débiteurs divers - retenues de garantie"]
[null,11111,"Apport, compte de fusion et opérations assimilées","11111 Apport, compte de fusion et opérations assimilées"]
[null,11111,"Bons de souscription d’actions et d’obligations","11111 Bons de souscription d’actions et d’obligations"]
[null,11111,"Créances sur cessions de titres de placement","11111 Créances sur cessions de titres de placement"]
[null,11111,"Versements restant à effectuer sur titres de placement non libérés","11111 Versements restant à effectuer sur titres de placement non libérés"]
[null,11111,"Mandants","11111 Mandants"]
[null,11111,"Mandataires","11111 Mandataires"]
[null,11111,"Commettants","11111 Commettants"]
[null,11111,"Commissionnaires","11111 Commissionnaires"]
[null,11111,"Etat, Collectivités publiques, fonds global d’allocation","11111 Etat, Collectivités publiques, fonds global d’allocation"]
[null,11111,"Compte de répartition périodique des charges","11111 Compte de répartition périodique des charges"]
[null,11111,"Compte de répartition périodique des produits","11111 Compte de répartition périodique des produits"]
[null,11111,"Compte-actif ","11111 Compte-actif "]
[null,11111,"Compte-passif ","11111 Compte-passif "]
[null,11111,"Diminution des créances d’exploitation et HAO","11111 Diminution des créances d’exploitation et HAO"]
[null,11111,"Diminution des créances financières","11111 Diminution des créances financières"]
[null,11111,"Augmentation des dettes d’exploitation et HAO","11111 Augmentation des dettes d’exploitation et HAO"]
[null,11111,"Augmentation des dettes financières","11111 Augmentation des dettes financières"]
[null,11111,"Différences d’évaluation sur instruments de trésorerie","11111 Différences d’évaluation sur instruments de trésorerie"]
[null,11111,"Différences compensées par couverture de change","11111 Différences compensées par couverture de change"]
[null,11111,"Augmentation des créances d’exploitation et HAO","11111 Augmentation des créances d’exploitation et HAO"]
[null,11111,"Augmentation des créances financières","11111 Augmentation des créances financières"]
[null,11111,"Diminution des dettes d’exploitation et HAO","11111 Diminution des dettes d’exploitation et HAO"]
[null,11111,"Diminution des dettes financières","11111 Diminution des dettes financières"]
[null,11111,"Différences d’évaluation sur instruments de trésorerie","11111 Différences d’évaluation sur instruments de trésorerie"]
[null,11111,"Différences compensées par couverture de change","11111 Différences compensées par couverture de change"]
[null,11111,"Immobilisations incorporelles","11111 Immobilisations incorporelles"]
[null,11111,"Immobilisations corporelles","11111 Immobilisations corporelles"]
[null,11111,"Versements restant à effectuer sur titres de participation et titres immobilisés non libérés ","11111 Versements restant à effectuer sur titres de participation et titres immobilisés non libérés "]
[null,11111,"Réserve de propriété (3)","11111 Réserve de propriété (3)"]
[null,11111,"Retenues de garantie  (3)","11111 Retenues de garantie  (3)"]
[null,11111,"Factures non parvenues (3)",{"$f":"B515&\" \"&C515","v":"11111 Factures non parvenues (3)"}]
[null,11111,"Immobilisations incorporelles","11111 Immobilisations incorporelles"]
[null,11111,"Immobilisations corporelles","11111 Immobilisations corporelles"]
[null,11111,"En compte, immobilisations incorporelles","11111 En compte, immobilisations incorporelles"]
[null,11111,"En compte, immobilisations corporelles","11111 En compte, immobilisations corporelles"]
[null,11111,"Effets à recevoir, immobilisations incorporelles","11111 Effets à recevoir, immobilisations incorporelles"]
[null,11111,"Effets à recevoir, immobilisations corporelles","11111 Effets à recevoir, immobilisations corporelles"]
[null,11111,"Effets escomptés non échus","11111 Effets escomptés non échus"]
[null,11111,"Immobilisations financières","11111 Immobilisations financières"]
[null,11111,"Retenues de garantie ","11111 Retenues de garantie "]
[null,11111,"Factures à établir","11111 Factures à établir"]
[null,11111,"Créances litigieuses","11111 Créances litigieuses"]
[null,11111,"Créances douteuses","11111 Créances douteuses"]
[null,11111,"Associés, comptes courants","11111 Associés, comptes courants"]
[null,11111,"Associés, opérations faites en commun et GIE","11111 Associés, opérations faites en commun et GIE"]
[null,11111,"Groupe, comptes courants","11111 Groupe, comptes courants"]
[null,11111,"Créances sur cessions d'immobilisations ","11111 Créances sur cessions d'immobilisations "]
[null,11111,"Créances sur cessions de titres de placement","11111 Créances sur cessions de titres de placement"]
[null,11111,"Autres créances H.A.O.","11111 Autres créances H.A.O."]
[null,11111,"Sur opérations d'exploitation","11111 Sur opérations d'exploitation"]
[null,11111,"Sur opérations H.A.O.","11111 Sur opérations H.A.O."]
[null,11111,"Titres du Trésor à court terme","11111 Titres du Trésor à court terme"]
[null,11111,"Titres d'organismes financiers","11111 Titres d'organismes financiers"]
[null,11111,"Bons de caisse à court terme","11111 Bons de caisse à court terme"]
[null,11111,"Frais d’acquisition des titres de Trésor et bons de caisse","11111 Frais d’acquisition des titres de Trésor et bons de caisse"]
[null,11111,"Actions ou parts propres","11111 Actions ou parts propres"]
[null,11111,"Actions cotées","11111 Actions cotées"]
[null,11111,"Actions non cotées","11111 Actions non cotées"]
[null,11111,"Actions démembrées (certificats d'investissement ; droits de vote)","11111 Actions démembrées (certificats d'investissement ; droits de vote)"]
[null,11111,"Autres actions","11111 Autres actions"]
[null,11111,"Frais d’acquisition des actions","11111 Frais d’acquisition des actions"]
[null,11111,"Obligations émises par l'entité et rachetées par elle","11111 Obligations émises par l'entité et rachetées par elle"]
[null,11111,"Obligations cotées","11111 Obligations cotées"]
[null,11111,"Obligations non cotées","11111 Obligations non cotées"]
[null,11111,"Autres obligations","11111 Autres obligations"]
[null,11111,"Frais d’acquisition des obligations","11111 Frais d’acquisition des obligations"]
[null,11111,"Bons de souscription d'actions","11111 Bons de souscription d'actions"]
[null,11111,"Bons de souscription d'obligations","11111 Bons de souscription d'obligations"]
[null,11111,"Titres du Trésor et bons de caisse à court terme","11111 Titres du Trésor et bons de caisse à court terme"]
[null,11111,"Actions","11111 Actions"]
[null,11111,"Obligations","11111 Obligations"]
[null,11111,"Warrants ","11111 Warrants "]
[null,11111,"Billets de fonds","11111 Billets de fonds"]
[null,11111,"Chèques de voyage","11111 Chèques de voyage"]
[null,11111,"Coupons échus ","11111 Coupons échus "]
[null,11111,"Intérêts échus des obligations","11111 Intérêts échus des obligations"]
[null,11111,"Banques en monnaie nationale","11111 Banques en monnaie nationale"]
[null,11111,"Banques en devises","11111 Banques en devises"]
[null,11111,"Banque, intérêts courus charges à payer","11111 Banque, intérêts courus charges à payer"]
[null,11111,"Banque, intérêts courus produits à recevoir","11111 Banque, intérêts courus produits à recevoir"]
[null,11111,"Caisse en monnaie nationale","11111 Caisse en monnaie nationale"]
[null,11111,"Caisse en devises","11111 Caisse en devises"]
[null,11111,"en monnaie nationale","11111 en monnaie nationale"]
[null,11111,"en devises","11111 en devises"]
[null,11111,"en monnaie nationale","11111 en monnaie nationale"]
[null,11111,"en devises","11111 en devises"]
[null,11111,"dans la Région (5)","11111 dans la Région (5)"]
[null,11111,"hors Région (5)","11111 hors Région (5)"]
[null,11111,"aux entités du groupe dans la Région","11111 aux entités du groupe dans la Région"]
[null,11111,"aux entités du groupe hors Région","11111 aux entités du groupe hors Région"]
[null,11111,"frais sur achats (6)","11111 frais sur achats (6)"]
[null,11111,"Rabais, Remises et Ristournes obtenus (non ventilés)","11111 Rabais, Remises et Ristournes obtenus (non ventilés)"]
[null,11111,"dans la Région (5)","11111 dans la Région (5)"]
[null,11111,"hors Région (5)","11111 hors Région (5)"]
[null,11111,"aux entités du groupe dans la Région",{"$f":"B579&\" \"&C579","v":"11111 aux entités du groupe dans la Région"}]
[null,11111,"aux entités du groupe hors Région","11111 aux entités du groupe hors Région"]
[null,11111,"frais sur achats (6)","11111 frais sur achats (6)"]
[null,11111,"Rabais, Remises et Ristournes obtenus (non ventilés)","11111 Rabais, Remises et Ristournes obtenus (non ventilés)"]
[null,11111,"Variations des stocks de marchandises","11111 Variations des stocks de marchandises"]
[null,11111,"Variations des stocks de matières premières et fournitures liées","11111 Variations des stocks de matières premières et fournitures liées"]
[null,11111,"Variations des stocks d'autres approvisionnements","11111 Variations des stocks d'autres approvisionnements"]
[null,11111,"Matières consommables ","11111 Matières consommables "]
[null,11111,"Matières combustibles","11111 Matières combustibles"]
[null,11111,"Produits d'entretien","11111 Produits d'entretien"]
[null,11111,"Fournitures d'atelier et d'usine","11111 Fournitures d'atelier et d'usine"]
[null,11111,"frais sur achats (6)","11111 frais sur achats (6)"]
[null,11111,"Fournitures de magasin","11111 Fournitures de magasin"]
[null,11111,"Fournitures de bureau","11111 Fournitures de bureau"]
[null,11111,"Rabais, Remises et Ristournes obtenus (non ventilés)","11111 Rabais, Remises et Ristournes obtenus (non ventilés)"]
[null,11111,"Fournitures non stockables -Eau","11111 Fournitures non stockables -Eau"]
[null,11111,"Fournitures non stockables - Electricité","11111 Fournitures non stockables - Electricité"]
[null,11111,"Fournitures non stockables – Autres énergies","11111 Fournitures non stockables – Autres énergies"]
[null,11111,"Fournitures d'entretien non stockables","11111 Fournitures d'entretien non stockables"]
[null,11111,"Fournitures de bureau non stockables","11111 Fournitures de bureau non stockables"]
[null,11111,"Achats de petit matériel et outillage","11111 Achats de petit matériel et outillage"]
[null,11111,"Achats d'études et prestations de services","11111 Achats d'études et prestations de services"]
[null,11111,"Achats de travaux, matériels et équipements","11111 Achats de travaux, matériels et équipements"]
[null,11111,"Rabais, Remises et Ristournes obtenus (non ventilés)","11111 Rabais, Remises et Ristournes obtenus (non ventilés)"]
[null,11111,"Emballages perdus","11111 Emballages perdus"]
[null,11111,"Emballages récupérables non identifiables","11111 Emballages récupérables non identifiables"]
[null,11111,"Emballages à usage mixte","11111 Emballages à usage mixte"]
[null,11111,"frais sur achats (6)","11111 frais sur achats (6)"]
[null,11111,"Rabais, Remises et Ristournes obtenus (non ventilés)","11111 Rabais, Remises et Ristournes obtenus (non ventilés)"]
[null,11111,"Voyages et déplacements","11111 Voyages et déplacements"]
[null,11111,"Transports entre établissements ou chantiers","11111 Transports entre établissements ou chantiers"]
[null,11111,"Transports administratifs","11111 Transports administratifs"]
[null,11111,"Locations de terrains","11111 Locations de terrains"]
[null,11111,"Locations de bâtiments","11111 Locations de bâtiments"]
[null,11111,"Locations de matériels et outillages","11111 Locations de matériels et outillages"]
[null,11111,"Malis sur emballages","11111 Malis sur emballages"]
[null,11111,"Locations d'emballages ","11111 Locations d'emballages "]
[null,11111,"Fermages et loyers du foncier","11111 Fermages et loyers du foncier"]
[null,11111,"Locations et charges locatives diverses","11111 Locations et charges locatives diverses"]
[null,11111,"Crédit-bail immobilier","11111 Crédit-bail immobilier"]
[null,11111,"Crédit-bail mobilier","11111 Crédit-bail mobilier"]
[null,11111,"Location-vente","11111 Location-vente"]
[null,11111,"Autres contrats de location-acquisition ","11111 Autres contrats de location-acquisition "]
[null,11111,"Entretien et réparations des biens immobiliers","11111 Entretien et réparations des biens immobiliers"]
[null,11111,"Entretien et réparations des biens mobiliers","11111 Entretien et réparations des biens mobiliers"]
[null,11111,"Maintenance","11111 Maintenance"]
[null,11111,"Charges de démantèlement et remise en état","11111 Charges de démantèlement et remise en état"]
[null,11111,"Autres entretiens et réparations","11111 Autres entretiens et réparations"]
[null,11111,"Assurances multirisques","11111 Assurances multirisques"]
[null,11111,"Assurances matériel de transport","11111 Assurances matériel de transport"]
[null,11111,"Assurances risques d'exploitation","11111 Assurances risques d'exploitation"]
[null,11111,"Assurances responsabilité du producteur","11111 Assurances responsabilité du producteur"]
[null,11111,"Assurances insolvabilité clients","11111 Assurances insolvabilité clients"]
[null,11111,"Assurances transport sur ventes","11111 Assurances transport sur ventes"]
[null,11111,"Autres primes d'assurances","11111 Autres primes d'assurances"]
[null,11111,"Etudes et recherches","11111 Etudes et recherches"]
[null,11111,"Documentation générale","11111 Documentation générale"]
[null,11111,"Documentation technique","11111 Documentation technique"]
[null,11111,"Annonces, insertions","11111 Annonces, insertions"]
[null,11111,"Catalogues, imprimés publicitaires","11111 Catalogues, imprimés publicitaires"]
[null,11111,"Echantillons","11111 Echantillons"]
[null,11111,"Foires et expositions","11111 Foires et expositions"]
[null,11111,"Publications","11111 Publications"]
[null,11111,"Cadeaux à la clientèle","11111 Cadeaux à la clientèle"]
[null,11111,"Frais de colloques, séminaires, conférences",{"$f":"B643&\" \"&C643","v":"11111 Frais de colloques, séminaires, conférences"}]
[null,11111,"Autres charges de publicité et relations publiques","11111 Autres charges de publicité et relations publiques"]
[null,11111,"Frais de téléphone","11111 Frais de téléphone"]
[null,11111,"Frais de télex","11111 Frais de télex"]
[null,11111,"Frais de télécopie","11111 Frais de télécopie"]
[null,11111,"Autres frais de télécommunications","11111 Autres frais de télécommunications"]
[null,11111,"Frais sur titres (vente, garde)","11111 Frais sur titres (vente, garde)"]
[null,11111,"Frais sur effets","11111 Frais sur effets"]
[null,11111,"Location de coffres","11111 Location de coffres"]
[null,11111,"Commissions d'affacturage et de titrisation","11111 Commissions d'affacturage et de titrisation"]
[null,11111,"Commissions sur cartes de crédit","11111 Commissions sur cartes de crédit"]
[null,11111,"Frais d'émission d'emprunts","11111 Frais d'émission d'emprunts"]
[null,11111,"Frais sur instruments monnaie électronique","11111 Frais sur instruments monnaie électronique"]
[null,11111,"Autres frais bancaires","11111 Autres frais bancaires"]
[null,11111,"Commissions et courtages sur ventes","11111 Commissions et courtages sur ventes"]
[null,11111,"Honoraires des professions règlementées","11111 Honoraires des professions règlementées"]
[null,11111,"Frais d'actes et de contentieux","11111 Frais d'actes et de contentieux"]
[null,11111,"Rémunérations d’affacturage et de titrisation","11111 Rémunérations d’affacturage et de titrisation"]
[null,11111,"Rémunérations des autres prestataires de services","11111 Rémunérations des autres prestataires de services"]
[null,11111,"Divers frais","11111 Divers frais"]
[null,11111,"Redevances pour brevets, licences","11111 Redevances pour brevets, licences"]
[null,11111,"Redevances pour logiciels","11111 Redevances pour logiciels"]
[null,11111,"Redevances pour marques","11111 Redevances pour marques"]
[null,11111,"Redevances pour sites  internet","11111 Redevances pour sites  internet"]
[null,11111,"Redevances pour concessions, droits et valeurs similaires","11111 Redevances pour concessions, droits et valeurs similaires"]
[null,11111,"Cotisations","11111 Cotisations"]
[null,11111,"Concours divers","11111 Concours divers"]
[null,11111,"Personnel intérimaire","11111 Personnel intérimaire"]
[null,11111,"Personnel détaché ou prêté à l'entité","11111 Personnel détaché ou prêté à l'entité"]
[null,11111,"Frais de recrutement du personnel","11111 Frais de recrutement du personnel"]
[null,11111,"Frais de déménagement","11111 Frais de déménagement"]
[null,11111,"Réceptions","11111 Réceptions"]
[null,11111,"Missions","11111 Missions"]
[null,11111,"Charges de copropriété","11111 Charges de copropriété"]
[null,11111,"Charges externes diverses","11111 Charges externes diverses"]
[null,11111,"Impôts fonciers et taxes annexes","11111 Impôts fonciers et taxes annexes"]
[null,11111,"Patentes, licences et taxes annexes","11111 Patentes, licences et taxes annexes"]
[null,11111,"Taxes sur appointements et salaires","11111 Taxes sur appointements et salaires"]
[null,11111,"Taxes d'apprentissage","11111 Taxes d'apprentissage"]
[null,11111,"Formation professionnelle continue","11111 Formation professionnelle continue"]
[null,11111,"Autres impôts et taxes directs","11111 Autres impôts et taxes directs"]
[null,11111,"Droits de mutation","11111 Droits de mutation"]
[null,11111,"Droits de timbre","11111 Droits de timbre"]
[null,11111,"Taxes sur les véhicules de société","11111 Taxes sur les véhicules de société"]
[null,11111,"Vignettes","11111 Vignettes"]
[null,11111,"Autres droits d'enregistrement","11111 Autres droits d'enregistrement"]
[null,11111,"Pénalités d'assiette, impôts directs","11111 Pénalités d'assiette, impôts directs"]
[null,11111,"Pénalités d'assiette, impôts indirects","11111 Pénalités d'assiette, impôts indirects"]
[null,11111,"Pénalités de recouvrement, impôts directs","11111 Pénalités de recouvrement, impôts directs"]
[null,11111,"Pénalités de recouvrement, impôts indirects","11111 Pénalités de recouvrement, impôts indirects"]
[null,11111,"Autres pénalités et amendes fiscales","11111 Autres pénalités et amendes fiscales"]
[null,11111,"Clients","11111 Clients"]
[null,11111,"Autres débiteurs","11111 Autres débiteurs"]
[null,11111,"Quote-part transférée de bénéfices (comptabilité du gérant)","11111 Quote-part transférée de bénéfices (comptabilité du gérant)"]
[null,11111,"Pertes imputées par transfert (comptabilité des associés non gérants)","11111 Pertes imputées par transfert (comptabilité des associés non gérants)"]
[null,11111,"Immobilisations incorporelles","11111 Immobilisations incorporelles"]
[null,11111,"Immobilisations corporelles","11111 Immobilisations corporelles"]
[null,11111,"Indemnités de fonction et autres rémunérations d'administrateurs","11111 Indemnités de fonction et autres rémunérations d'administrateurs"]
[null,11111,"Dons","11111 Dons"]
[null,11111,"Mécénat","11111 Mécénat"]
[null,11111,"Autres charges diverses","11111 Autres charges diverses"]
[null,11111,"sur risques à court terme","11111 sur risques à court terme"]
[null,11111,"sur stocks","11111 sur stocks"]
[null,11111,"sur créances","11111 sur créances"]
[null,11111,"Autres charges pour  dépréciations et provisions pour risques à court terme  ",{"$f":"B707&\" \"&C707","v":"11111 Autres charges pour  dépréciations et provisions pour risques à court terme  "}]
[null,11111,"Appointements salaires et commissions","11111 Appointements salaires et commissions"]
[null,11111,"Primes et gratifications","11111 Primes et gratifications"]
[null,11111,"Congés payés","11111 Congés payés"]
[null,11111,"Indemnités de préavis, de licenciement et de recherche d'embauche","11111 Indemnités de préavis, de licenciement et de recherche d'embauche"]
[null,11111,"Indemnités de maladie versées aux travailleurs","11111 Indemnités de maladie versées aux travailleurs"]
[null,11111,"Supplément familial","11111 Supplément familial"]
[null,11111,"Avantages en nature","11111 Avantages en nature"]
[null,11111,"Autres rémunérations directes","11111 Autres rémunérations directes"]
[null,11111,"Appointements salaires et commissions","11111 Appointements salaires et commissions"]
[null,11111,"Primes et gratifications","11111 Primes et gratifications"]
[null,11111,"Congés payés","11111 Congés payés"]
[null,11111,"Indemnités de préavis, de licenciement et de recherche d'embauche","11111 Indemnités de préavis, de licenciement et de recherche d'embauche"]
[null,11111,"Indemnités de maladie versées aux travailleurs","11111 Indemnités de maladie versées aux travailleurs"]
[null,11111,"Supplément familial","11111 Supplément familial"]
[null,11111,"Avantages en nature","11111 Avantages en nature"]
[null,11111,"Autres rémunérations directes","11111 Autres rémunérations directes"]
[null,11111,"Indemnités de logement","11111 Indemnités de logement"]
[null,11111,"Indemnités de représentation","11111 Indemnités de représentation"]
[null,11111,"Indemnités d'expatriation","11111 Indemnités d'expatriation"]
[null,11111,"Indemnités de transport","11111 Indemnités de transport"]
[null,11111,"Autres indemnités et avantages divers","11111 Autres indemnités et avantages divers"]
[null,11111,"Charges sociales sur rémunération du personnel national","11111 Charges sociales sur rémunération du personnel national"]
[null,11111,"Charges sociales sur rémunération du personnel non national","11111 Charges sociales sur rémunération du personnel non national"]
[null,11111,"Rémunération du travail de l'exploitant","11111 Rémunération du travail de l'exploitant"]
[null,11111,"Charges sociales","11111 Charges sociales"]
[null,11111,"Personnel intérimaire","11111 Personnel intérimaire"]
[null,11111,"Personnel détaché ou prêté à l’entité","11111 Personnel détaché ou prêté à l’entité"]
[null,11111,"Versements aux Syndicats et Comités d'entreprise, d'établissement","11111 Versements aux Syndicats et Comités d'entreprise, d'établissement"]
[null,11111,"Versements aux Comités d'hygiène et de sécurité","11111 Versements aux Comités d'hygiène et de sécurité"]
[null,11111,"Versements et contributions aux autres œuvres sociales","11111 Versements et contributions aux autres œuvres sociales"]
[null,11111,"Médecine du travail et pharmacie","11111 Médecine du travail et pharmacie"]
[null,11111,"Assurances et organismes de santé","11111 Assurances et organismes de santé"]
[null,11111,"Assurances retraite et fonds de pensions","11111 Assurances retraite et fonds de pensions"]
[null,11111,"Majorations et pénalités sociales","11111 Majorations et pénalités sociales"]
[null,11111,"Charges sociales diverses","11111 Charges sociales diverses"]
[null,11111,"Emprunts obligataires","11111 Emprunts obligataires"]
[null,11111,"Emprunts auprès des établissements de crédit","11111 Emprunts auprès des établissements de crédit"]
[null,11111,"Dettes liées à des participations","11111 Dettes liées à des participations"]
[null,11111,"Primes de remboursement des obligations","11111 Primes de remboursement des obligations"]
[null,11111,"Intérêts dans loyers de location-acquisition/crédit-bail immobilier","11111 Intérêts dans loyers de location-acquisition/crédit-bail immobilier"]
[null,11111,"Intérêts dans loyers de location-acquisition/crédit-bail mobilier","11111 Intérêts dans loyers de location-acquisition/crédit-bail mobilier"]
[null,11111,"Intérêts dans loyers de location-acquisition/location-vente","11111 Intérêts dans loyers de location-acquisition/location-vente"]
[null,11111,"Intérêts dans loyers des autres locations-acquisition ","11111 Intérêts dans loyers des autres locations-acquisition "]
[null,11111,"Avances reçues et dépôts créditeurs","11111 Avances reçues et dépôts créditeurs"]
[null,11111,"Comptes courants bloqués","11111 Comptes courants bloqués"]
[null,11111,"Intérêts sur obligations cautionnées","11111 Intérêts sur obligations cautionnées"]
[null,11111,"Intérêts sur dettes commerciales","11111 Intérêts sur dettes commerciales"]
[null,11111,"Intérêts bancaires et sur opérations de financement (escompte…)","11111 Intérêts bancaires et sur opérations de financement (escompte…)"]
[null,11111,"Intérêts sur dettes diverses","11111 Intérêts sur dettes diverses"]
[null,11111,"Pertes sur cessions de titres de placement","11111 Pertes sur cessions de titres de placement"]
[null,11111,"Malis provenant d’attribution gratuite d’actions au personnel salarié et aux dirigeants\n","11111 Malis provenant d’attribution gratuite d’actions au personnel salarié et aux dirigeants\n"]
[null,11111,"sur rentes viagères","11111 sur rentes viagères"]
[null,11111,"sur opérations financières","11111 sur opérations financières"]
[null,11111,"sur instruments de trésorerie","11111 sur instruments de trésorerie"]
[null,11111,"sur risques financiers","11111 sur risques financiers"]
[null,11111,"sur titres de placement","11111 sur titres de placement"]
[null,11111,"Autres charges pour dépréciations et provisions pour risques à court terme financières","11111 Autres charges pour dépréciations et provisions pour risques à court terme financières"]
[null,11111,"Dotations aux amortissements des immobilisations incorporelles","11111 Dotations aux amortissements des immobilisations incorporelles"]
[null,11111,"Dotations aux amortissements des immobilisations corporelles","11111 Dotations aux amortissements des immobilisations corporelles"]
[null,11111,"Dotations aux provisions pour risques et charges","11111 Dotations aux provisions pour risques et charges"]
[null,11111,"Dotations aux dépréciations des immobilisations incorporelles","11111 Dotations aux dépréciations des immobilisations incorporelles"]
[null,11111,"Dotations aux dépréciations des immobilisations corporelles","11111 Dotations aux dépréciations des immobilisations corporelles"]
[null,11111,"Dotations aux provisions pour risques et charges","11111 Dotations aux provisions pour risques et charges"]
[null,11111,"Dotations aux dépréciations des immobilisations financières",{"$f":"B771&\" \"&C771","v":"11111 Dotations aux dépréciations des immobilisations financières"}]
[null,11111,"dans la Région (7)","11111 dans la Région (7)"]
[null,11111,"hors Région (7)","11111 hors Région (7)"]
[null,11111,"aux entités du groupe dans la Région","11111 aux entités du groupe dans la Région"]
[null,11111,"aux entités du groupe hors Région","11111 aux entités du groupe hors Région"]
[null,11111,"sur internet","11111 sur internet"]
[null,11111,"Rabais, remises, ristournes accordés (non ventilés)","11111 Rabais, remises, ristournes accordés (non ventilés)"]
[null,11111,"dans la Région (7)","11111 dans la Région (7)"]
[null,11111,"hors Région (7)","11111 hors Région (7)"]
[null,11111,"aux entités du groupe dans la Région","11111 aux entités du groupe dans la Région"]
[null,11111,"aux entités du groupe hors Région","11111 aux entités du groupe hors Région"]
[null,11111,"sur internet","11111 sur internet"]
[null,11111,"Rabais, remises, ristournes accordés (non ventilés)","11111 Rabais, remises, ristournes accordés (non ventilés)"]
[null,11111,"dans la Région (7)","11111 dans la Région (7)"]
[null,11111,"hors Région (7)","11111 hors Région (7)"]
[null,11111,"aux entités du groupe dans la Région","11111 aux entités du groupe dans la Région"]
[null,11111,"aux entités du groupe hors Région","11111 aux entités du groupe hors Région"]
[null,11111,"sur internet","11111 sur internet"]
[null,11111,"Rabais, remises, ristournes accordés (non ventilés)","11111 Rabais, remises, ristournes accordés (non ventilés)"]
[null,11111,"dans la Région (7)","11111 dans la Région (7)"]
[null,11111,"hors Région (7)","11111 hors Région (7)"]
[null,11111,"aux entités du groupe dans la Région","11111 aux entités du groupe dans la Région"]
[null,11111,"aux entités du groupe hors Région","11111 aux entités du groupe hors Région"]
[null,11111,"sur internet","11111 sur internet"]
[null,11111,"Rabais, remises, ristournes accordés (non ventilés)","11111 Rabais, remises, ristournes accordés (non ventilés)"]
[null,11111,"dans la Région (7)","11111 dans la Région (7)"]
[null,11111,"hors Région (7)","11111 hors Région (7)"]
[null,11111,"aux entités du groupe dans la Région","11111 aux entités du groupe dans la Région"]
[null,11111,"aux entités du groupe hors Région","11111 aux entités du groupe hors Région"]
[null,11111,"sur internet","11111 sur internet"]
[null,11111,"Rabais, remises, ristournes accordés (non ventilés)","11111 Rabais, remises, ristournes accordés (non ventilés)"]
[null,11111,"dans la Région (7)","11111 dans la Région (7)"]
[null,11111,"hors Région (7)","11111 hors Région (7)"]
[null,11111,"aux entités du groupe dans la Région","11111 aux entités du groupe dans la Région"]
[null,11111,"aux entités du groupe hors Région","11111 aux entités du groupe hors Région"]
[null,11111,"sur internet","11111 sur internet"]
[null,11111,"Rabais, remises, ristournes accordés (non ventilés)","11111 Rabais, remises, ristournes accordés (non ventilés)"]
[null,11111,"Ports, emballages perdus et autres frais facturés","11111 Ports, emballages perdus et autres frais facturés"]
[null,11111,"Commissions et courtages(8)","11111 Commissions et courtages(8)"]
[null,11111,"Locations et redevances de location - financement (8) ","11111 Locations et redevances de location - financement (8) "]
[null,11111,"Bonis sur reprises et cessions d'emballages","11111 Bonis sur reprises et cessions d'emballages"]
[null,11111,"Mise à disposition de personnel (8)","11111 Mise à disposition de personnel (8)"]
[null,11111,"Redevances pour brevets, logiciels, marques et droits similaires (8)","11111 Redevances pour brevets, logiciels, marques et droits similaires (8)"]
[null,11111,"Services exploités dans l'intérêt du personnel","11111 Services exploités dans l'intérêt du personnel"]
[null,11111,"Autres produits accessoires","11111 Autres produits accessoires"]
[null,11111,"Versées par l'Etat et les collectivités publiques","11111 Versées par l'Etat et les collectivités publiques"]
[null,11111,"Versées par les organismes internationaux","11111 Versées par les organismes internationaux"]
[null,11111,"Versées par des tiers","11111 Versées par des tiers"]
[null,11111," immobilisations corporelles (hors actifs biologiques)","11111  immobilisations corporelles (hors actifs biologiques)"]
[null,11111,"immobilisations corporelles (actifs biologiques)","11111 immobilisations corporelles (actifs biologiques)"]
[null,11111,"Produits en cours","11111 Produits en cours"]
[null,11111,"Travaux en cours","11111 Travaux en cours"]
[null,11111,"Etudes en cours ","11111 Etudes en cours "]
[null,11111,"Prestations de services en cours","11111 Prestations de services en cours"]
[null,11111,"Produits intermédiaires","11111 Produits intermédiaires"]
[null,11111,"Produits résiduels","11111 Produits résiduels"]
[null,11111,"Quote-part transférée de pertes (comptabilité du gérant)","11111 Quote-part transférée de pertes (comptabilité du gérant)"]
[null,11111,"Bénéfices attribués par transfert (comptabilité des associés non gérants)","11111 Bénéfices attribués par transfert (comptabilité des associés non gérants)"]
[null,11111,"Immobilisations incorporelles","11111 Immobilisations incorporelles"]
[null,11111,"Immobilisations corporelles","11111 Immobilisations corporelles"]
[null,11111,"Indemnités de fonction et autres rémunérations d'administrateurs","11111 Indemnités de fonction et autres rémunérations d'administrateurs"]
[null,11111,"Indemnités d’assurances reçues","11111 Indemnités d’assurances reçues"]
[null,11111,"Autres produits divers","11111 Autres produits divers"]
[null,11111,"sur risques à court terme","11111 sur risques à court terme"]
[null,11111,"sur stocks",{"$f":"B835&\" \"&C835","v":"11111 sur stocks"}]
[null,11111,"sur créances","11111 sur créances"]
[null,11111,"sur autres charges pour dépréciations  et provisions pour risques à court terme d’exploitation  ","11111 sur autres charges pour dépréciations  et provisions pour risques à court terme d’exploitation  "]
[null,11111,"Intérêts de prêts","11111 Intérêts de prêts"]
[null,11111,"Intérêts sur créances diverses ","11111 Intérêts sur créances diverses "]
[null,11111,"Revenus des titres de participation","11111 Revenus des titres de participation"]
[null,11111,"Revenus autres titres immobilisés","11111 Revenus autres titres immobilisés"]
[null,11111,"Revenus des obligations ","11111 Revenus des obligations "]
[null,11111,"Revenus des titres de placement ","11111 Revenus des titres de placement "]
[null,11111,"sur rentes viagères","11111 sur rentes viagères"]
[null,11111,"sur opérations financières","11111 sur opérations financières"]
[null,11111,"sur instruments de trésorerie","11111 sur instruments de trésorerie"]
[null,11111,"sur risques financiers","11111 sur risques financiers"]
[null,11111,"sur titres de placement","11111 sur titres de placement"]
[null,11111,"sur autres charges pour dépréciations et provisions pour risques à court terme financières","11111 sur autres charges pour dépréciations et provisions pour risques à court terme financières"]
[null,11111,"pour risques et charges","11111 pour risques et charges"]
[null,11111,"des immobilisations incorporelles","11111 des immobilisations incorporelles"]
[null,11111,"des immobilisations corporelles","11111 des immobilisations corporelles"]
[null,11111,"pour risques et charges","11111 pour risques et charges"]
[null,11111,"des immobilisations financières","11111 des immobilisations financières"]
[null,11111,"Activités exercées dans l'Etat","11111 Activités exercées dans l'Etat"]
[null,11111,"Activités exercées dans les autres Etats de la Région","11111 Activités exercées dans les autres Etats de la Région"]
[null,11111,"Activités exercées hors Région","11111 Activités exercées hors Région"]
[null,11111,"Dégrèvements","11111 Dégrèvements"]
[null,11111,"Annulations pour pertes rétroactives","11111 Annulations pour pertes rétroactives"]
[null,11111,"Crédits accordés non décaissés","11111 Crédits accordés non décaissés"]
[null,11111,"Autres engagements de financement accordés","11111 Autres engagements de financement accordés"]
[null,11111,"Avals accordés","11111 Avals accordés"]
[null,11111,"Cautions, garanties accordées","11111 Cautions, garanties accordées"]
[null,11111,"Hypothèques accordées","11111 Hypothèques accordées"]
[null,11111,"Effets endossés par l'entité","11111 Effets endossés par l'entité"]
[null,11111,"Autres garanties accordées","11111 Autres garanties accordées"]
[null,11111,"Ventes de marchandises à terme","11111 Ventes de marchandises à terme"]
[null,11111,"Ventes à terme de devises","11111 Ventes à terme de devises"]
[null,11111,"Commandes fermes aux fournisseurs","11111 Commandes fermes aux fournisseurs"]
[null,11111,"Autres engagements réciproques","11111 Autres engagements réciproques"]
[null,11111,"Annulations conditionnelles de dettes","11111 Annulations conditionnelles de dettes"]
[null,11111,"Engagements de retraite","11111 Engagements de retraite"]
[null,11111,"Achats avec clause de réserve de propriété","11111 Achats avec clause de réserve de propriété"]
[null,11111,"Divers engagements accordés","11111 Divers engagements accordés"]
[null,11111,"Diminution des créances d’exploitation","11111 Diminution des créances d’exploitation"]
[null,11111,"Diminution des créances HAO","11111 Diminution des créances HAO"]
[null,11111,"Augmentation des dettes d’exploitation ","11111 Augmentation des dettes d’exploitation "]
[null,11111,"Augmentation des dettes HAO","11111 Augmentation des dettes HAO"]
[null,11111,"Augmentation des créances d’exploitation ","11111 Augmentation des créances d’exploitation "]
[null,11111,"Augmentation des créances HAO","11111 Augmentation des créances HAO"]
[null,11111,"Diminution des dettes d’exploitation ","11111 Diminution des dettes d’exploitation "]
[null,11111,"Diminution des dettes HAO","11111 Diminution des dettes HAO"]
[null,11111,"Réserve de propriété - immobilisations incorporelles","11111 Réserve de propriété - immobilisations incorporelles"]
[null,11111,"Réserve de propriété - immobilisations corporelles","11111 Réserve de propriété - immobilisations corporelles"]
[null,11111,"Retenues de garantie  - immobilisations incorporelles","11111 Retenues de garantie  - immobilisations incorporelles"]
[null,11111,"Retenues de garantie  - immobilisations incorporelles","11111 Retenues de garantie  - immobilisations incorporelles"]
[null,11111,"Factures non parvenues - immobilisations incorporelles","11111 Factures non parvenues - immobilisations incorporelles"]
[null,11111,"Factures non parvenues - immobilisations corporelles","11111 Factures non parvenues - immobilisations corporelles"]
[null,11111,"Achats de marchandises à terme","11111 Achats de marchandises à terme"]
[null,11111,"Achats à terme de devises","11111 Achats à terme de devises"]
[null,11111,"Commandes fermes des clients","11111 Commandes fermes des clients"]
[null,11111,"Autres engagements réciproques","11111 Autres engagements réciproques"]
[null,11111,"Crédits confirmés obtenus","11111 Crédits confirmés obtenus"]
[null,11111,"Emprunts restant à encaisser","11111 Emprunts restant à encaisser"]
[null,11111,"Facilités de financement renouvelables","11111 Facilités de financement renouvelables"]
[null,11111," Facilités d'émission","11111  Facilités d'émission"]
[null,11111,"Autres engagements de financement obtenus","11111 Autres engagements de financement obtenus"]
[null,11111,"Avals obtenus","11111 Avals obtenus"]
[null,11111,"Cautions, garanties obtenues",{"$f":"B899&\" \"&C899","v":"11111 Cautions, garanties obtenues"}]
[null,11111,"Hypothèques obtenues","11111 Hypothèques obtenues"]
[null,11111,"Effets endossés par des tiers","11111 Effets endossés par des tiers"]
[null,11111,"Autres garanties obtenues","11111 Autres garanties obtenues"]
[null,11111,"Abandons de créances conditionnels","11111 Abandons de créances conditionnels"]
[null,11111,"Ventes avec clause de réserve de propriété ","11111 Ventes avec clause de réserve de propriété "]
[null,11111,"Divers engagements obtenus","11111 Divers engagements obtenus"]